Department family,Entity,Date,Expense type,Expense area,Supplier,Transaction number, Amount            � 
Department of Health,Royal United Hospital Bath NHS Trust,02/09/2013,Revenue: Non-pay expenditure,Facilities,EDF ENERGY,4410940,"30,917"
Department of Health,Royal United Hospital Bath NHS Trust,01/09/2013,Revenue: Non-pay expenditure,Patient Care Delivery,ROCHE DIAGNOSTICS LTD,4411630,"115,037"
Department of Health,Royal United Hospital Bath NHS Trust,04/09/2013,Revenue: Non-pay expenditure,Patient Care Delivery,GREAT WESTERN HOSPITALS NHS FOUNDATION TRUST,4411685,"71,742"
Department of Health,Royal United Hospital Bath NHS Trust,09/09/2013,Revenue: Non-pay expenditure,Corporate,GRANT THORNTON UK LLP,4412668,"26,769"
Department of Health,Royal United Hospital Bath NHS Trust,16/09/2013,Revenue: Non-pay expenditure,Pathology,NHS BLOOD AND TRANSPLANT,4412707,"151,305"
Department of Health,Royal United Hospital Bath NHS Trust,16/09/2013,Capital Expenditure,Capital Expenditure,KIER REGIONAL LTD T/A KIER WESTERN,4412994,"863,035"
Department of Health,Royal United Hospital Bath NHS Trust,02/09/2013,Revenue: Non-pay expenditure,Oncology,VARIAN MEDICAL EQUIPMENT,4413403,"178,700"
Department of Health,Royal United Hospital Bath NHS Trust,28/08/2013,Capital Expenditure,Capital Expenditure,JP SERVICES (SW) LTD,4413695,"63,762"
Department of Health,Royal United Hospital Bath NHS Trust,23/09/2013,Income,Research and Development,GENERAL SUNDRY SUPPLIER,4413889,"37,500"
Department of Health,Royal United Hospital Bath NHS Trust,17/07/2013,Capital Expenditure,Capital Expenditure,SHIELD ENVIRONMENTAL SERVICES LTD,4414024,"30,000"
Department of Health,Royal United Hospital Bath NHS Trust,23/09/2013,Revenue: Non-pay expenditure,Balance sheet,HEALTHCARE PRODUCT SERVICES,4414224,"40,680"
Department of Health,Royal United Hospital Bath NHS Trust,31/07/2013,Capital Expenditure,Capital Expenditure,KEN BIGGS CONTRACTORS LTD,4414418,"114,972"
Department of Health,Royal United Hospital Bath NHS Trust,27/09/2013,Balance Sheet,Balance sheet,NHS SUPPLY CHAIN (GOODS),4414423,"75,019"
Department of Health,Royal United Hospital Bath NHS Trust,01/10/2013,Revenue: Non-pay expenditure,Pathology,PUBLIC HEALTH ENGLAND,4414430,"135,333"
Department of Health,Royal United Hospital Bath NHS Trust,31/05/2013,Revenue: Non-pay expenditure,Patient Care Delivery,PENTAGON HS LTD,4414440,"49,099"
Department of Health,Royal United Hospital Bath NHS Trust,01/07/2013,Revenue: Non-pay expenditure,Patient Care Delivery,PENTAGON HS LTD,4414443,"49,099"
Department of Health,Royal United Hospital Bath NHS Trust,30/09/2013,Revenue: Non-pay expenditure,Patient Care Delivery,PENTAGON HS LTD,4414447,"30,500"
Department of Health,Royal United Hospital Bath NHS Trust,30/09/2013,Revenue: Non-pay expenditure,Patient Care Delivery,PENTAGON HS LTD,4414448,"30,500"
Department of Health,Royal United Hospital Bath NHS Trust,20/09/2013,Capital Expenditure,Capital Expenditure,GE MEDICAL SYSTEMS LTD,4414646,"32,388"
Department of Health,Royal United Hospital Bath NHS Trust,27/09/2013,Revenue: Non-pay expenditure,Facilities,E-ZEC MEDICAL TRANSPORT SERVICES LTD,4414944,"74,541"
Department of Health,Royal United Hospital Bath NHS Trust,01/10/2013,Revenue: Non-pay expenditure,Facilities,EDF ENERGY,4415381,"94,593"
Department of Health,Royal United Hospital Bath NHS Trust,01/10/2013,Revenue: Non-pay expenditure,Pathology,ROCHE DIAGNOSTICS LTD,4415383,"138,045"
Department of Health,Royal United Hospital Bath NHS Trust,30/09/2013,Capital Expenditure,Capital Expenditure,JP SERVICES (SW) LTD,4415465,"49,741"
Department of Health,Royal United Hospital Bath NHS Trust,26/09/2013,Capital Expenditure,Capital Expenditure,IAN WILLIAMS LTD,4416021,"36,523"
Department of Health,Royal United Hospital Bath NHS Trust,10/10/2013,Revenue: Non-pay expenditure,Corporate,NATWEST COMMERCIAL CARDS,4416152,"29,404"
Department of Health,Royal United Hospital Bath NHS Trust,03/10/2013,Revenue: Non-pay expenditure,Facilities,GREAT WESTERN HOSPITALS NHS FOUNDATION TRUST,4416613,"92,373"
Department of Health,Royal United Hospital Bath NHS Trust,10/10/2013,Revenue: Non-pay expenditure,Facilities,BRISTOL WESSEX BILLING SERVICES LTD,4416619,"50,274"
Department of Health,Royal United Hospital Bath NHS Trust,03/10/2013,Revenue: Non-pay expenditure,Facilities,GREAT WESTERN HOSPITALS NHS FOUNDATION TRUST,4416621,"155,638"
Department of Health,Royal United Hospital Bath NHS Trust,04/10/2013,Balance Sheet,Balance sheet,NHS SUPPLY CHAIN (GOODS),4416634,"64,248"
Department of Health,Royal United Hospital Bath NHS Trust,08/10/2013,Revenue: Non-pay expenditure,Facilities,SALISBURY NHS FOUNDATION TRUST,4416751,"51,864"
Department of Health,Royal United Hospital Bath NHS Trust,27/09/2013,Capital Expenditure,Capital Expenditure,BRAY & SLAUGHTER LTD,4416835,"302,790"
Department of Health,Royal United Hospital Bath NHS Trust,30/09/2013,Revenue: Non-pay expenditure,Radiology,MEDICA REPORTING LTD,4416849,"28,399"
Department of Health,Royal United Hospital Bath NHS Trust,13/09/2013,Revenue: Non-pay expenditure,Balance sheet,QUALASEPT LTD T/A BATH ASU,4416978,"35,641"
Department of Health,Royal United Hospital Bath NHS Trust,30/09/2013,Revenue: Non-pay expenditure,Balance sheet,QUALASEPT LTD T/A BATH ASU,4416985,"25,492"
Department of Health,Royal United Hospital Bath NHS Trust,09/10/2013,Revenue: Non-pay expenditure,Facilities,CORONA ENERGY,4417098,"59,765"
Department of Health,Royal United Hospital Bath NHS Trust,30/09/2013,Capital Expenditure,Capital Expenditure,BRAY & SLAUGHTER LTD,4417101,"67,787"
Department of Health,Royal United Hospital Bath NHS Trust,18/10/2013,Capital Expenditure,Capital Expenditure,KIER REGIONAL LTD T/A KIER WESTERN,4417735,"713,207"
Department of Health,Royal United Hospital Bath NHS Trust,15/10/2013,Revenue: Non-pay expenditure,Pathology,NHS BLOOD AND TRANSPLANT,4418202,"151,305"
Department of Health,Royal United Hospital Bath NHS Trust,11/10/2013,Balance Sheet,Balance sheet,NHS SUPPLY CHAIN (GOODS),4418203,"65,193"
Department of Health,Royal United Hospital Bath NHS Trust,14/10/2013,Balance Sheet,Balance sheet,NHSBSA PRESCRIPTION PRICING AUTHORITY,4418204,"72,377"
Department of Health,Royal United Hospital Bath NHS Trust,04/10/2013,Revenue: Non-pay expenditure,Cardiology,NHS SUPPLY CHAIN (MAINTENANCE),4418209,"37,502"
Department of Health,Royal United Hospital Bath NHS Trust,18/10/2013,Balance Sheet,Balance sheet,NHS SUPPLY CHAIN (GOODS),4418257,"66,929"
Department of Health,Royal United Hospital Bath NHS Trust,22/10/2013,Recharges,Balance sheet,COMPUTERSHARE VOUCHER SERVICE,4418315,"31,408"
Department of Health,Royal United Hospital Bath NHS Trust,01/10/2013,Revenue: Non-pay expenditure,Facilities,BATH & NORTH EAST SOMERSET COUNCIL,4418933,"137,179"
,,,,,,,"4,758,575"
